bitfinex/quotes_SOLUSD_20251024
["timestamp","ask_amount","ask_price","bid_price","bid_amount"]
[1761348881837,0.67,193.7,193.66,5.16368893]
[1761348882635,0.67,193.7,193.66,5.87368893]
[1761348883251,0.67,193.7,193.66,5.16368893]
[1761348884040,3.22796331,193.7,193.66,5.16368893]
[1761348884540,0.67,193.69,193.66,5.16368893]
[1761348886156,0.67,193.69,193.66,0.71]
[1761348888055,0.67,193.69,193.65,18.07341451]
[1761348888258,0.67,193.69,193.65,18.78341451]
[1761348889658,0.67,193.69,193.66,0.66]
[1761348890067,0.67,193.69,193.65,18.07341451]
[1761348890355,0.67,193.69,193.65,18.73341451]
[1761348891248,0.67,193.69,193.65,18.07341451]
[1761348891457,0.67,193.69,193.66,5.82344627]
[1761348891759,0.67,193.69,193.66,8.38140958]
[1761348892060,0.67,193.69,193.67,2.55796331]
[1761348892443,0.67,193.69,193.67,7.72132543]
[1761348892639,0.67,193.69,193.66,5.16365418]
[1761348892839,0.67,193.69,193.65,2.55796331]
[1761348893155,0.67,193.69,193.64,7.72218557]
[1761348893665,0.67,193.69,193.64,5.16422226]
[1761348893835,3.22796331,193.69,193.64,5.16422226]
[1761348894236,0.68,193.68,193.64,5.16422226]
[1761348894546,38.27796331,193.67,193.61,3.21796331]
[1761348895049,0.68,193.66,193.61,3.21796331]
[1761348895250,0.68,193.66,193.61,0.66]
[1761348895463,0.68,193.66,193.61,8.38290415]
[1761348895845,0.68,193.66,193.61,7.72290415]
[1761348896248,8.40167451,193.66,193.6,8.38320516]
[1761348896447,2.55796331,193.65,193.6,5.16524185]
[1761348896653,3.23796331,193.65,193.6,5.16524185]
[1761348896854,3.23796331,193.64,193.58,2.55796331]
[1761348897056,38.27796331,193.63,193.57,2.55796331]
[1761348897367,2.55796331,193.62,193.57,5.16608978]
[1761348897679,3.23796331,193.62,193.57,5.16608978]
[1761348897861,0.68,193.61,193.57,5.16608978]
[1761348898063,2.55796331,193.6,193.55,5.16638753]
[1761348898262,35.72,193.59,193.55,7.72435084]
[1761348898879,0.68,193.58,193.55,5.16638753]
[1761348899745,0.68,193.58,193.55,7.72435084]
[1761348901162,0.68,193.61,193.57,2.55796331]
[1761348901355,35.74,193.6,193.57,2.55796331]
[1761348901766,36.42,193.6,193.57,2.55796331]
[1761348902081,0.68,193.6,193.57,2.55796331]
[1761348902378,0.68,193.65,193.59,2.55796331]
[1761348902682,35.74,193.64,193.6,2.55796331]
[1761348903056,0.68,193.63,193.59,2.55796331]
[1761348903867,0.68,193.63,193.58,2.55796331]
[1761348904074,0.68,193.63,193.58,8.41360871]
[1761348904257,0.68,193.63,193.59,3.24796331]
[1761348904963,35.74,193.64,193.59,7.72325573]
[1761348905172,36.42,193.64,193.6,0.69]
[1761348905670,35.74,193.64,193.6,0.69]
[1761348905863,0.68,193.63,193.6,3.24796331]
[1761348906063,0.68,193.63,193.6,2.55796331]
[1761348906578,35.74,193.62,193.6,2.55796331]
[1761348908079,35.74,193.62,193.6,7.72319538]
[1761348908585,35.74,193.61,193.6,8.41319538]
[1761348909278,35.74,193.61,193.6,7.72319538]
[1761348909474,35.74,193.61,193.6,5.16523207]
[1761348909677,35.74,193.61,193.6,7.72319538]
[1761348910168,35.74,193.61,193.6,8.41319538]
[1761348910366,35.74,193.61,193.6,5.85523207]
[1761348910671,35.74,193.61,193.6,5.16523207]
[1761348911375,5.16372044,193.66,193.6,8.41319538]
[1761348911680,35.74,193.65,193.6,7.72319538]
[1761348911874,2.55796331,193.64,193.58,2.55796331]
[1761348912061,3.23796331,193.64,193.58,3.24796331]
[1761348912261,0.68,193.63,193.58,3.24796331]
[1761348912461,3.23796331,193.63,193.57,2.55796331]
[1761348912657,0.68,193.63,193.58,3.24796331]
[1761348913079,0.68,193.63,193.59,0.69]
[1761348913873,0.68,193.63,193.58,5.1656916]
[1761348914193,0.68,193.63,193.58,8.41365491]
[1761348915080,35.74,193.62,193.58,8.41365491]
[1761348915469,36.42,193.62,193.58,8.41365491]
[1761348915664,35.74,193.61,193.58,8.41365491]
[1761348915864,35.74,193.61,193.59,0.69]
[1761348916270,35.74,193.61,193.58,7.72365491]
[1761348916575,35.74,193.61,193.58,8.41365491]
[1761348918290,35.74,193.61,193.58,5.8556916]
[1761348918678,36.42,193.61,193.58,5.1656916]
[1761348919194,0.68,193.6,193.56,5.16619139]
[1761348919496,0.68,193.6,193.56,8.4141547]
[1761348920090,0.68,193.6,193.56,7.7241547]
[1761348920382,0.68,193.6,193.56,5.16619139]
[1761348921375,35.74,193.61,193.57,0.7]
[1761348921680,35.74,193.6,193.57,0.7]
[1761348921874,35.74,193.6,193.58,2.55796331]
[1761348922385,35.74,193.6,193.58,3.25796331]
[1761348923593,35.74,193.6,193.58,2.55796331]
[1761348924899,35.74,193.6,193.57,5.86590648]
[1761348925194,35.74,193.6,193.58,2.55796331]
[1761348925985,35.74,193.6,193.58,3.25796331]
[1761348927974,35.74,193.6,193.58,5.86577959]
[1761348928600,0.71,193.62,193.58,5.86577959]
[1761348928786,35.74,193.59,193.58,7.50608771]
[1761348929201,35.74,193.59,193.58,6.80608771]
[1761348929688,5.87450187,193.63,193.58,6.80608771]
[1761348929995,36.45,193.62,193.58,7.50608771]
[1761348930394,102.91,193.65,193.59,2.34030812]
[1761348930698,36.45,193.64,193.6,2.34030812]
[1761348931977,36.45,193.64,193.61,0.7]
[1761348934278,35.74,193.64,193.61,0.7]
[1761348937001,36.45,193.64,193.6,6.80548125]
[1761348937302,36.45,193.64,193.6,7.50548125]
[1761348938206,36.45,193.64,193.6,5.86517313]
[1761348940891,36.45,193.64,193.6,5.16517313]
[1761348941103,36.45,193.64,193.61,0.7]
[1761348941406,36.45,193.64,193.6,5.16517313]
[1761348941592,36.45,193.64,193.6,5.86517313]
[1761348942504,36.45,193.64,193.61,0.7]
[1761348942690,36.45,193.64,193.6,5.16517313]
[1761348942691,36.45,193.64,193.6,5.86517313]
[1761348943795,36.45,193.64,193.6,5.16517313]
[1761348943994,36.45,193.64,193.61,0.7]
[1761348944705,35.74,193.64,193.61,0.7]
[1761348949388,0.71,193.66,193.61,7.50525361]
[1761348949593,35.72,193.65,193.62,2.34030812]
[1761348949796,35.72,193.64,193.62,2.34030812]
[1761348950002,5.87319373,193.68,193.63,2.32030812]
[1761348950217,5.87319373,193.68,193.65,1.64030812]
[1761348950218,35.72,193.67,193.65,1.64030812]
[1761348950708,35.72,193.67,193.65,2.32030812]
[1761348951002,0.71,193.7,193.66,2.32030812]
[1761348951191,35.72,193.69,193.66,2.32030812]
[1761348952004,35.72,193.69,193.66,0.68]
[1761348952309,35.72,193.69,193.66,7.48396707]
[1761348953693,35.72,193.69,193.66,5.84365895]
[1761348959632,0.71,193.71,193.66,7.46396707]
[1761348959936,36.43,193.7,193.66,5.82365895]
[1761348961130,0.71,193.69,193.65,5.16392217]
[1761348961302,0.71,193.69,193.65,5.82392217]
[1761348963129,0.71,193.69,193.65,5.16392217]
[1761348963445,0.71,193.69,193.66,0.66]
[1761348963731,0.71,193.69,193.65,5.82392217]
[1761348965511,0.71,193.69,193.66,0.66]
[1761348968734,0.71,193.69,193.65,5.16392217]
[1761348968939,0.71,193.69,193.65,5.82392217]
[1761348970642,0.71,193.69,193.65,7.46423029]
[1761348971632,35.72,193.7,193.66,5.82365316]
[1761348971846,36.43,193.7,193.67,0.66]
[1761348973125,35.72,193.7,193.66,5.16365316]
[1761348973331,0.71,193.69,193.66,5.16365316]
[1761348974837,0.71,193.69,193.66,5.82365316]
[1761348975243,36.43,193.7,193.66,5.82365316]
[1761348976238,36.43,193.7,193.67,0.66]
[1761348978542,35.72,193.7,193.67,0.66]
[1761348979252,5.16240239,193.71,193.67,0.66]
[1761348979547,35.68,193.7,193.67,0.66]
[1761348980223,1.64030812,193.73,193.67,7.46369249]
[1761348980519,6.80396128,193.74,193.67,7.46369249]
[1761348980520,35.68,193.72,193.69,1.64030812]
[1761348980719,0.7,193.74,193.69,1.64030812]
[1761348980720,35.68,193.71,193.69,1.64030812]
[1761348980946,5.86156553,193.74,193.7,0.67]
[1761348981150,0.7,193.73,193.7,0.67]
[1761348981348,36.38,193.73,193.7,0.67]
[1761348982134,35.68,193.73,193.7,0.67]
[1761348983543,36.38,193.73,193.7,0.67]
[1761348985551,0.7,193.73,193.7,0.67]
[1761348985752,35.68,193.72,193.7,0.67]
[1761348987651,0.7,193.75,193.7,5.83254981]
[1761348987864,35.68,193.74,193.7,5.83254981]
[1761348988032,35.68,193.74,193.71,0.67]
[1761348990555,35.68,193.74,193.71,5.83233035]
[1761348992356,35.68,193.74,193.72,0.67]
[1761348992659,22.88,193.78,193.73,2.55968938]
[1761348992835,35.66,193.77,193.73,2.55968938]
[1761348993034,35.66,193.77,193.74,0.67]
[1761348993438,36.36,193.77,193.74,0.67]
[1761348993637,2.55968938,193.75,193.71,5.16233035]
[1761348993958,35.68,193.74,193.71,20.66580571]
[1761348994161,36.38,193.74,193.71,20.66580571]
[1761348994345,36.38,193.74,193.71,21.33580571]
[1761348994862,35.68,193.74,193.71,21.33580571]
[1761348995561,35.68,193.74,193.72,0.67]
[1761348995766,35.68,193.74,193.71,5.83230197]
[1761348995950,36.38,193.74,193.71,5.83230197]
[1761349000164,35.68,193.74,193.7,0.67]
[1761349000367,0.7,193.73,193.7,5.16261428]
[1761349001068,35.68,193.74,193.7,5.83261428]
[1761349001364,36.38,193.74,193.7,5.83261428]
[1761349006847,36.38,193.74,193.71,0.67]
[1761349007057,35.68,193.74,193.71,5.83233134]
[1761349007747,36.38,193.74,193.71,5.83233134]
[1761349008468,35.68,193.74,193.71,5.83233134]
[1761349009768,35.68,193.74,193.71,5.16233134]
[1761349010068,35.68,193.74,193.72,0.72]
[1761349010575,0.7,193.75,193.72,0.72]
[1761349010752,35.66,193.74,193.72,0.72]
[1761349011360,35.66,193.74,193.71,5.88233134]
[1761349011878,35.66,193.74,193.72,0.72]
[1761349012056,7.72085115,193.76,193.72,0.72]
[1761349012257,35.66,193.75,193.72,0.72]
[1761349013076,36.36,193.75,193.72,0.72]
[1761349018777,35.66,193.75,193.72,0.72]
[1761349019073,35.66,193.74,193.72,8.44176042]
[1761349019682,35.66,193.74,193.73,0.69]
[1761349035384,35.66,193.74,193.72,23.85554156]
[1761349035888,35.66,193.74,193.73,0.69]
[1761349036889,35.66,193.74,193.72,23.16554156]
[1761349037093,35.66,193.74,193.72,23.85554156]
[1761349037468,35.66,193.74,193.72,23.16554156]
[1761349037680,35.66,193.74,193.73,0.69]
[1761349040305,102.2,193.78,193.73,8.41151253]
[1761349040500,0.2,193.79,193.74,3.23968938]
[1761349040794,35.66,193.77,193.74,3.23968938]
[1761349040988,35.66,193.77,193.75,3.23968938]
[1761349041181,35.66,193.77,193.75,9.08989913]
[1761349041381,35.66,193.77,193.75,6.53020975]
[1761349041592,35.66,193.77,193.75,0.68]
[1761349041785,35.66,193.77,193.76,12.90553264]
[1761349043595,36.35,193.77,193.76,12.90553264]
[1761349048597,36.35,193.77,193.74,5.16151554]
[1761349048901,35.66,193.77,193.75,12.90553264]
[1761349051888,36.35,193.77,193.75,12.90553264]
[1761349052089,0.69,193.76,193.75,12.90553264]
[1761349052484,2.32772495,193.76,193.75,12.90553264]
[1761349052686,2.32772495,193.76,193.71,5.84216538]
[1761349052886,36.33,193.75,193.72,12.90553264]
[1761349058416,35.64,193.75,193.72,12.90553264]
[1761349058591,35.64,193.75,193.72,13.58553264]
[1761349059315,36.33,193.75,193.72,13.58553264]
[1761349059615,36.33,193.75,193.72,12.90553264]
[1761349060712,36.33,193.75,193.72,13.58553264]
[1761349061810,36.33,193.75,193.72,12.90553264]
[1761349062519,0.69,193.74,193.72,12.90553264]
[1761349062831,35.64,193.73,193.72,12.90553264]
[1761349063701,43.1295481,193.73,193.68,0.68]
[1761349063923,2.32772495,193.72,193.69,12.90736316]
[1761349064106,35.64,193.71,193.69,12.90736316]
[1761349064508,35.64,193.71,193.69,13.58736316]
[1761349067618,35.64,193.71,193.7,0.68]
[1761349068325,35.64,193.71,193.69,12.90736316]
[1761349068326,35.64,193.71,193.69,13.58736316]
[1761349070931,35.64,193.71,193.69,13.60736316]
[1761349073330,35.64,193.71,193.7,0.7]
[1761349075830,35.64,193.71,193.69,12.90736316]
[1761349078312,35.64,193.71,193.69,13.59736316]
[1761349079316,35.64,193.71,193.69,12.90736316]
[1761349079524,35.64,193.71,193.7,0.69]
[1761349080640,35.64,193.71,193.69,12.90736316]
[1761349081336,35.64,193.71,193.69,13.59736316]
[1761349082839,35.64,193.71,193.7,0.69]
[1761349083934,35.64,193.71,193.69,13.59736316]
[1761349084315,7.4795481,193.73,193.69,13.59736316]
[1761349084516,35.66,193.72,193.69,13.59736316]
[1761349085038,36.34,193.72,193.69,13.59736316]
[1761349086529,0.68,193.72,193.69,13.59736316]
[1761349086729,35.66,193.71,193.69,13.59736316]
[1761349086935,35.66,193.7,193.69,13.59736316]
[1761349087134,35.66,193.7,193.69,14.54508811]
[1761349087338,35.66,193.7,193.69,12.90736316]
[1761349089423,35.66,193.7,193.69,13.59736316]
[1761349094251,35.66,193.7,193.69,0.69]
[1761349094422,35.66,193.7,193.68,13.59736316]
[1761349094627,0.68,193.69,193.64,5.85405795]
[1761349094830,2.31772495,193.69,193.64,7.4917829]
[1761349095146,2.31772495,193.69,193.65,14.28736316]
[1761349095644,0.68,193.68,193.65,14.28736316]
[1761349095824,35.66,193.67,193.65,14.28736316]
[1761349099848,35.66,193.67,193.65,13.59736316]
[1761349100151,0.72,193.66,193.62,0.67]
[1761349100362,0.72,193.66,193.63,15.51068945]
[1761349100648,0.72,193.66,193.62,5.83472105]
[1761349100951,0.72,193.66,193.62,21.3454105]
[1761349105636,43.1811707,193.67,193.63,0.67]
[1761349105841,41.54344575,193.67,193.63,0.67]
[1761349106230,7.52092679,193.68,193.63,16.18068945]
[1761349106441,35.66,193.67,193.63,17.8184144]
[1761349106734,35.66,193.67,193.64,0.67]
[1761349107058,7.52092679,193.68,193.64,0.67]
[1761349107254,35.66,193.66,193.64,0.67]
[1761349110247,7.52092679,193.68,193.64,0.67]
[1761349110546,35.66,193.67,193.64,0.67]
[1761349114857,35.66,193.67,193.62,5.16472105]
[1761349115051,35.66,193.67,193.64,0.67]
[1761349119266,36.38,193.67,193.64,0.67]
[1761349119762,35.66,193.67,193.64,0.67]
[1761349121660,8.44482246,193.68,193.64,0.67]
[1761349121965,35.66,193.66,193.64,0.67]
[1761349124060,7.72482246,193.68,193.64,0.67]
[1761349124271,35.66,193.67,193.64,0.67]
[1761349138563,8.44482246,193.68,193.64,0.67]
[1761349138761,35.66,193.66,193.64,0.67]
[1761349146674,35.66,193.66,193.63,0.71]
[1761349147576,35.66,193.66,193.62,20.67540669]
[1761349147888,0.69,193.65,193.62,16.22068945]
[1761349148081,0.69,193.65,193.58,0.71]
[1761349148082,2.56162062,193.63,193.58,0.71]
[1761349148264,38.22162062,193.62,193.58,0.71]
[1761349148666,38.91162062,193.62,193.58,0.71]
[1761349149494,2.56162062,193.61,193.57,15.51470017]
[1761349149791,38.22162062,193.6,193.56,0.71]
[1761349149957,38.91162062,193.6,193.56,0.71]
[1761349150156,2.56162062,193.59,193.56,0.71]
[1761349150357,35.66,193.58,193.56,0.71]
[1761349155570,35.66,193.58,193.56,8.43796511]
[1761349156388,25.44162062,193.62,193.57,3.27162062]
[1761349156576,35.66,193.61,193.57,3.27162062]
[1761349156890,35.66,193.61,193.58,0.71]
[1761349158187,0.69,193.6,193.56,5.87634449]
[1761349158377,35.66,193.59,193.56,5.87634449]
[1761349159195,35.66,193.59,193.56,0.71]
[1761349159995,35.66,193.59,193.54,5.16684697]
[1761349159996,38.22162062,193.59,193.54,5.16684697]
[1761349160211,3.25162062,193.58,193.54,5.85684697]
[1761349160490,35.66,193.57,193.55,0.69]
[1761349161469,35.66,193.57,193.55,5.85655185]
[1761349161893,3.25162062,193.6,193.56,0.69]
[1761349162100,35.66,193.59,193.56,0.69]
[1761349163196,35.66,193.59,193.56,5.85629653]
[1761349167601,3.25162062,193.6,193.56,5.85629653]
[1761349167776,35.66,193.59,193.56,5.85629653]
[1761349169600,0.69,193.58,193.55,5.16662361]
[1761349169802,35.66,193.57,193.55,5.16662361]
[1761349170007,35.66,193.57,193.55,5.85662361]
[1761349175011,0.69,193.56,193.53,0.1]
[1761349176595,0.69,193.56,193.53,0.79]
[1761349177922,37.30095941,193.57,193.53,5.9570284]
[1761349178211,35.66,193.56,193.53,7.59798781]
[1761349178382,35.66,193.55,193.53,0.1]
[1761349178591,36.35,193.55,193.53,0.1]
[1761349178988,35.66,193.55,193.53,0.1]
[1761349179293,36.35,193.55,193.53,0.1]
[1761349181416,2.33095941,193.54,193.53,0.1]
[1761349185927,0.69,193.54,193.53,0.1]
[1761349186101,60.18095941,193.55,193.53,0.1]
[1761349186416,0.69,193.54,193.53,0.1]
[1761349190228,60.18095941,193.55,193.53,0.1]
[1761349190416,0.7,193.54,193.53,0.1]
[1761349190619,60.88095941,193.55,193.53,0.1]
[1761349190823,0.7,193.54,193.53,0.1]
[1761349191128,60.88095941,193.55,193.53,0.1]
[1761349191711,0.7,193.54,193.53,0.1]
[1761349192630,60.18095941,193.55,193.53,0.1]
[1761349192817,35.7,193.54,193.53,0.1]
[1761349200838,5.16638633,193.56,193.53,0.1]
[1761349201143,5.16638633,193.56,193.53,0.78]
[1761349201144,35.7,193.55,193.53,0.78]
[1761349202123,35.7,193.55,193.53,0.1]
[1761349203744,35.7,193.55,193.53,0.78]
[1761349206034,36.36,193.55,193.53,0.1]
[1761349206438,2.30095941,193.54,193.53,0.1]
[1761349207834,0.66,193.54,193.53,0.1]
[1761349208034,43.16761392,193.55,193.53,0.1]
[1761349210758,42.50761392,193.55,193.53,0.1]
[1761349211062,37.34095941,193.55,193.53,0.1]
[1761349211428,35.7,193.54,193.53,0.1]
[1761349212968,35.7,193.54,193.53,2.26958996]
[1761349214650,35.7,193.54,193.53,2.94958996]
[1761349215552,35.7,193.54,193.53,2.26958996]
[1761349222856,36.38,193.54,193.53,0.1]
[1761349224340,41.54689056,193.54,193.53,0.1]
[1761349230261,41.54689056,193.54,193.48,2.17001837]
[1761349230262,22.88,193.51,193.48,2.07001837]
[1761349230467,35.68,193.5,193.48,2.07001837]
[1761349230642,36.36,193.5,193.48,2.07001837]
[1761349231069,36.36,193.5,193.47,0.1]
[1761349231365,36.36,193.5,193.47,2.17023264]
[1761349231861,35.68,193.5,193.47,2.17023264]
[1761349232070,0.68,193.49,193.47,2.17023264]
[1761349232255,35.7,193.48,193.47,2.17023264]
[1761349232857,35.7,193.48,193.47,2.85023264]
[1761349235566,35.7,193.48,193.47,2.17023264]
[1761349236151,35.7,193.48,193.47,2.82023264]
[1761349238684,35.7,193.48,193.47,5.38685776]
[1761349241981,35.7,193.48,193.47,2.82023264]
[1761349243067,22.88,193.5,193.47,2.82023264]
[1761349243369,35.68,193.49,193.48,0.65]
[1761349245379,35.68,193.49,193.47,2.66662512]
[1761349245587,35.68,193.49,193.48,0.65]
[1761349246272,35.68,193.49,193.48,3.31662512]
[1761349246473,35.68,193.49,193.48,0.65]
[1761349247286,35.68,193.49,193.47,4.06662512]
[1761349250188,35.68,193.49,193.47,3.41662512]
[1761349250383,35.68,193.49,193.48,0.68]
[1761349256169,35.68,193.49,193.48,8.51583905]
[1761349259088,22.88,193.5,193.48,8.51583905]
[1761349259292,35.68,193.49,193.48,8.51583905]
[1761349261391,22.88,193.5,193.48,8.51583905]
[1761349261708,22.88,193.5,193.49,0.7]
[1761349261874,58.56,193.5,193.49,0.7]
[1761349262076,58.56,193.5,193.49,8.51583905]
[1761349262688,58.56,193.5,193.49,9.21583905]
[1761349263079,58.56,193.5,193.49,8.51583905]
[1761349263501,58.56,193.5,193.49,9.21583905]
[1761349264399,58.56,193.5,193.49,8.51583905]
[1761349264697,58.56,193.5,193.49,9.21583905]
[1761349264898,58.56,193.5,193.49,8.51583905]
[1761349265398,58.56,193.5,193.49,9.21583905]
[1761349268598,58.56,193.5,193.49,8.51583905]
[1761349268994,58.56,193.5,193.49,9.21583905]
[1761349269198,58.56,193.5,193.49,8.51583905]
[1761349270591,58.56,193.5,193.49,9.21583905]
[1761349271183,58.56,193.5,193.49,8.51583905]
[1761349275010,22.88,193.5,193.49,8.51583905]
[1761349275189,35.68,193.5,193.49,9.21583905]
[1761349276009,2.56662512,193.56,193.49,16.95068991]
[1761349276310,36.4,193.55,193.5,0.7]
[1761349276693,36.4,193.55,193.5,16.22192471]
[1761349276888,35.68,193.55,193.51,0.7]
[1761349277304,35.68,193.55,193.52,15.52192471]
[1761349277698,35.68,193.55,193.52,16.22192471]
[1761349278192,35.68,193.55,193.52,0.7]
[1761349278497,35.68,193.55,193.53,15.52192471]
[1761349280414,22.88,193.56,193.53,16.18192471]
[1761349280711,35.68,193.54,193.53,16.18192471]
[1761349280895,23.59,193.56,193.53,0.66]
[1761349281090,35.68,193.55,193.53,16.18192471]
[1761349281710,23.59,193.56,193.53,16.18192471]
[1761349281916,35.68,193.55,193.53,16.18192471]
[1761349282212,35.68,193.55,193.53,0.66]
[1761349282622,35.68,193.55,193.54,15.52192471]
[1761349293125,35.68,193.55,193.54,16.18192471]
[1761349293726,35.68,193.55,193.54,15.52192471]
[1761349296037,35.68,193.55,193.54,16.18192471]
[1761349297330,35.68,193.55,193.54,15.52192471]
[1761349299215,35.68,193.55,193.54,16.18192471]
[1761349300336,35.68,193.55,193.54,15.52192471]
[1761349301345,35.68,193.55,193.54,16.18192471]
[1761349303217,35.68,193.55,193.54,15.52192471]
[1761349305049,35.68,193.55,193.54,16.18192471]
[1761349307425,35.68,193.55,193.54,15.52192471]
[1761349307963,35.68,193.55,193.54,16.18192471]
[1761349308143,35.68,193.55,193.54,15.52192471]
[1761349310351,35.68,193.55,193.54,16.19192471]
[1761349311674,35.68,193.55,193.54,15.52192471]
[1761349312529,58.56,193.55,193.54,15.52192471]
[1761349313744,58.56,193.55,193.53,0.67]
[1761349314055,58.56,193.55,193.53,16.19192471]
[1761349316055,58.56,193.55,193.53,0.67]
[1761349322238,35.68,193.54,193.53,0.67]
[1761349329663,35.68,193.54,193.51,0.7]
[1761349329873,35.68,193.54,193.52,0.7]
[1761349342667,22.88,193.55,193.52,5.8674231]
[1761349342872,35.68,193.53,193.52,5.8674231]
[1761349343081,35.68,193.53,193.52,5.1674231]
[1761349343575,35.68,193.53,193.52,5.8674231]
[1761349352192,35.68,193.53,193.52,0.7]
[1761349358669,35.68,193.53,193.52,21.38934926]
[1761349361395,35.68,193.53,193.52,5.86742455]
[1761349362194,35.68,193.53,193.52,21.38934926]
[1761349363993,35.68,193.53,193.52,5.86742455]
[1761349364995,35.68,193.53,193.51,20.68957091]
[1761349365187,36.36,193.53,193.51,20.68957091]
[1761349365972,35.68,193.53,193.51,20.68957091]
[1761349366270,35.68,193.53,193.51,21.38957091]
[1761349368206,35.68,193.53,193.51,20.68957091]
[1761349371113,35.68,193.53,193.51,21.37957091]
[1761349377008,35.68,193.53,193.51,15.52192471]
[1761349377190,0.69,193.52,193.47,0.1]
[1761349377395,25.44488813,193.5,193.47,0.1]
[1761349377695,59.25,193.49,193.47,0.1]
[1761349378499,0.71,193.48,193.47,0.1]
[1761349381011,59.25,193.49,193.47,0.1]
[1761349382510,23.59,193.49,193.47,0.1]
[1761349382708,35.66,193.48,193.47,0.1]
[1761349383007,36.37,193.48,193.47,0.1]
[1761349384112,35.66,193.48,193.47,0.1]
[1761349384508,36.37,193.48,193.47,0.1]
[1761349388910,35.66,193.48,193.47,0.1]
[1761349391605,35.66,193.48,193.47,0.77]
[1761349394020,22.88,193.49,193.47,0.77]
[1761349394225,35.66,193.48,193.47,0.77]
[1761349398613,125.79,193.52,193.47,0.77]
[1761349398816,35.66,193.51,193.47,5.93871893]
[1761349399003,35.66,193.51,193.47,8.50360706]
[1761349399203,35.66,193.51,193.48,0.67]
[1761349399829,36.35,193.51,193.48,0.67]
[1761349408249,0.69,193.5,193.47,0.1]
[1761349408412,35.66,193.49,193.47,0.82]
[1761349414243,130.93747801,193.52,193.47,0.82]
[1761349414439,35.66,193.51,193.47,0.82]
[1761349415113,36.35,193.51,193.47,0.82]
[1761349426050,0.69,193.5,193.47,0.1]
[1761349426231,35.66,193.49,193.47,0.1]
[1761349426540,35.66,193.49,193.47,0.82]
[1761349428345,35.66,193.49,193.47,0.1]
[1761349428538,36.35,193.49,193.47,0.1]
[1761349429051,37.99228287,193.49,193.47,0.1]
[1761349429937,37.97228287,193.49,193.47,0.1]
[1761349430445,0.67,193.48,193.47,0.1]
[1761349431348,37.97228287,193.49,193.47,0.1]
[1761349436432,35.66,193.49,193.47,0.8]
[1761349437131,35.66,193.49,193.47,0.1]
[1761349437648,2.34228287,193.48,193.47,0.1]
[1761349439343,7.51077573,193.48,193.47,0.1]
[1761349440735,2.34228287,193.48,193.47,0.1]
[1761349445958,0.7,193.48,193.47,0.1]
[1761349447540,65.35053661,193.49,193.47,0.1]
[1761349447747,66.05053661,193.49,193.47,0.1]
[1761349450466,1.64228287,193.48,193.47,0.1]
[1761349451453,65.35053661,193.49,193.47,0.77]
[1761349453864,65.35053661,193.49,193.48,6.80953429]
[1761349454166,60.18228287,193.49,193.48,6.80953429]
[1761349455957,65.35050861,193.49,193.48,6.80953429]
[1761349456376,102.2,193.52,193.48,7.47953429]
[1761349456545,35.66,193.51,193.49,0.67]
[1761349456965,35.66,193.51,193.5,6.80953429]